Cogmind - Beta 15 @@@ ROGUE MODE // 2025.06.07 @ 19:38:13 Player: Mas5akr Result: Destroyed by as-78041 with Assembled Heavy Rifle Performance ------------- Evolutions (0) 0 Regions Visited (2) 400 Robots Destroyed (23) 115 Value Destroyed (602) 602 Prototype IDs (2) 40 Alien Tech Used (0) 0 Bonus (39) 39 TOTAL SCORE: 1196 Bonus ------- Follower Combat Kills 39 Cogmind --------- Core Integrity 0/250 Matter 197/300 Energy 100/100 System Corruption 0% Temperature Cool (0) Movement Treading (160) Location -10/Mines Parts ------- > --- POWER (1) -------- (None) > --- PROPULSION (2) --- Light Treads > --- UTILITY (2) ------ Small Storage Unit Utility Shielding > --- WEAPON (2) ------- Assault Rifle Assault Rifle > --- INVENTORY (8) ---- Ion Engine Small Matter Pod (50) Signal Interpreter Hacking Suite Particle Gun Mining Laser Peak State ------------ > --- POWER ------------ Ion Engine > --- PROPULSION ------- Light Treads Light Treads > --- UTILITY ---------- Small Storage Unit Utility Shielding > --- WEAPON ----------- Assault Rifle Light Cannon > --- INVENTORY -------- Ion Engine Small Matter Pod Signal Interpreter Hacking Suite Particle Gun Assault Rifle Assault Rifle Mining Laser [Rating: 8] Favorites ----------- Power Ion Engine Engine Ion Engine Propulsion Light Treads Treads Light Treads Utility Small Storage Unit Storage Small Storage Unit Protection Utility Shielding Weapon Small Laser Energy Gun Small Laser Ballistic Gun Assault Rifle Ballistic Cannon Light Cannon Build | -11 -10 -10 ------- Run | Yrd Mat Min Slots Evolved . | . . . Power . | . . . Propulsion . | . . . Utility . | . . . Weapon . | . . . Parts Attached 12 | 6 3 3 Power 2 | 1 1 . Engine 2 | 1 1 . Core . | . . . Reactor . | . . . Propulsion 2 | 2 . . Treads 2 | 2 . . Leg . | . . . Wheel . | . . . Hover . | . . . Flight . | . . . Utility 2 | 1 . 1 Device . | . . . Storage 1 | 1 . . Processor . | . . . Hackware . | . . . Protection 1 | . . 1 Artifact . | . . . Weapon 6 | 2 2 2 Energy Gun 2 | 2 . . Energy Cannon . | . . . Ballistic Gun 3 | . 1 2 Ballistic Cannon 1 | . 1 . Launcher . | . . . Special Weapon . | . . . Impact Weapon . | . . . Slashing Weapon . | . . . Piercing Weapon . | . . . Special Melee Weapon . | . . . Unidentified Prototypes . | . . . Parts Lost 6 | . 2 4 Power 2 | . 1 1 Propulsion 1 | . . 1 Utility . | . . . Weapon 3 | . 1 2 Highest Loss Streak 3 | . 1 3 To Critical Strikes . | . . . Average Backups 5 | 2 5 7 Power 1 | 1 1 1 Propulsion . | . . . Utility 1 | . 1 3 Weapon 2 | 1 2 3 Tool/Special . | . . . Unused Backups 7 | . 2 5 Power 1 | . . 1 Propulsion . | . . . Utility 3 | . . 3 Weapon 3 | . 2 1 Tool/Special . | . . . Average Slot Usage (%) 85 | . 84 90 Engine 13 | . 14 11 Treads 27 | . 27 26 Storage 14 | . 14 14 Protection 2 | . . 9 Energy Gun 11 | . 15 . Ballistic Gun 7 | . 3 20 Ballistic Cannon 8 | . 8 6 Peak Build Rating 8 | 6 7 8 Average Rating 6 | 3 6 7 On Entrance 4 | . 6 7 Naked Turns . | . . . Heaviest Build 16 | 13 15 16 Greatest Support 40 | 40 40 40 Greatest Overweight (x) . | . . . Average Overweight (x) . | . . . Largest Inventory Capacity 8 | 8 8 8 Average Capacity 7 | 6 8 8 Most Carried 8 | 5 8 8 Average Carried 5 | 2 5 7 Final Capacity 8 | 8 8 8 Final Carried 8 | 2 8 6 Class Distribution -------------------- 100% | Mutant Dominant Class ---------------- Mutant | -10/Materials Mutant | -10/Mines Resources | -11 -10 -10 ----------- Run | Yrd Mat Min Matter Collected 446 | 253 152 41 Remotely . | . . . Salvage Created 699 | . 565 134 Parts 42 | . 35 7 Haulers Intercepted 1 | . 1 . Recyclers Shooed . | . . . Parts Field Recycled . | . . . Retrieved Matter . | . . . Parts Self-Destructed . | . . . Prevented . | . . . Kills | -11 -10 -10 ------- Run | Yrd Mat Min Combat Hostiles Destroyed 21 | . 16 5 Guns 8 | . 4 4 Cannons 13 | . 12 1 Classes Destroyed 7 | . 4 3 Hauler 1 | . 1 . Recycler 1 | . . 1 Operator 1 | . 1 . Swarmer 6 | . 3 3 Grunt 13 | . 13 . Demolisher 1 | . . 1 Assembled 1 | . . 1 Best Kill Streak 4 | . 4 4 Combat Bots Only 3 | . 3 3 Max Kills in Single Turn 1 | . 1 1 Gunslinging . | . . . Exploded . | . . . Melee . | . . . Uniques/NPCs Destroyed . | . . . Combat | -11 -10 -10 -------- Run | Yrd Mat Min Hostile Shots Fired 116 | . 79 37 Missed 22 | . 16 6 Hits 94 | . 63 31 Melee 2 | . . 2 Projectile 92 | . 63 29 AOE 14 | . . 14 Damage Taken 1406 | . 692 714 Core 254 | . 108 146 Absorbed by Shields . | . . . Redirected to Shielding 19 | . . 19 Regen/Repaired (Parts) 237 | . 237 . Core Remaining (%) 100 | 100 . . Volleys Fired 57 | . 42 15 Largest 2 | . 2 2 Hottest 90 | . 90 50 Shots Fired 112 | . 83 29 Gun 87 | . 61 26 Cannon 25 | . 22 3 Launcher . | . . . Special . | . . . Kinetic 53 | . 24 29 Thermal 59 | . 59 . Explosive . | . . . Electromagnetic . | . . . Robot Hit Streak 7 | . 7 5 Robot Miss Streak 3 | . 3 2 Penetration Max . | . . . Secondary Targets . | . . . Shots Hit Robots 70 | . 51 19 Core Hits 36 | . 26 10 Critical Kills . | . . . Critical Parts Destroyed . | . . . Critical Strikes 3 | . 3 . Burn 2 | . 2 . Blast 1 | . 1 . Melee Attacks . | . . . Impact . | . . . Slashing . | . . . Piercing . | . . . Sneak Attacks . | . . . Combat Hostiles . | . . . Follow-up Attacks . | . . . Damage Inflicted 1001 | . 717 284 Guns 638 | . 394 244 Cannons 363 | . 323 40 Explosions . | . . . Melee . | . . . Ramming . | . . . Kinetic 633 | . 349 284 Thermal 368 | . 368 . Explosive . | . . . Electromagnetic . | . . . Impact . | . . . Slashing . | . . . Piercing . | . . . Highest Corruption . | . . . Average Corruption . | . . . Corruption Purged . | . . . Corruption Blocked . | . . . Overload Shots . | . . . Overflow Damage 2 | . 2 . Projectiles 2 | . 2 . Explosions . | . . . Melee . | . . . Knockbacks 1 | . 1 . Impact . | . . . Kinetic 1 | . 1 . Secondary . | . . . Self-Inflicted Damage . | . . . Shots . | . . . Rammed . | . . . Targets Rammed . | . . . Kicked . | . . . Crushed . | . . . Highest Temperature 336 | . 336 . Average Temperature 80 | . 80 . Received Heat Transfer 324 | . 324 . Siege Activations . | . . . Martial Activations . | . . . Shielding Activations . | . . . Robots Disrupted . | . . . Combat Hostiles . | . . . Robots Corrupted . | . . . Combat Hostiles . | . . . Parts Fried . | . . . Impact Corruptions . | . . . Robots Melted . | . . . Combat Hostiles . | . . . Parts Melted 1 | . 1 . Heat Transferred 1068 | . 1068 . Parts Sabotaged . | . . . Parts Stolen . | . . . Parts Stripped . | . . . Power Chain Reactions . | . . . Alert | -11 -10 -10 ------- Run | Yrd Mat Min Maximum Alert Level . | . . . Low Security (%) 100 | 100 100 100 Level 1 . | . . . Level 2 . | . . . Level 3 . | . . . Level 4 . | . . . Level 5 . | . . . High Security . | . . . Max Security . | . . . Peak Influence 179 | . 179 66 Initial 61 | . . 61 Average 63 | . 77 36 Influence Increases 633 | . 502 131 Destroy 0b10 Robot/C 420 | . 320 100 Destroy 0b10 Robot/NC 15 | . 10 5 Destroy Leader 82 | . 62 20 Allied During Kill 6 | . . 6 Successful Hack 20 | . 20 . Disable Machine 15 | . 15 . Lose Combat Pursuer 75 | . 75 . Influence Decreases 607 | . 344 263 Entered New Map 97 | . . 97 Time Decay 454 | . 324 130 Lost Part 56 | . 20 36 Squads Dispatched 5 | . 5 . Investigation 4 | . 4 . Extermination . | . . . Reinforcement 1 | . 1 . Assault . | . . . Garrison . | . . . Intercept . | . . . Searches Triggered . | . . . Construction Impeded . | . . . Haulers Reinforced . | . . . Active Scanning Responses . | . . . Cargo Convoy Interrupts . | . . . Stealth | -11 -10 -10 --------- Run | Yrd Mat Min Distress Signals 3 | . 2 1 Communications Jammed . | . . . Distress Signals . | . . . Times Spotted 32 | . 21 11 Peak Tracking Total 4 | . 4 3 Tactical Retreats 2 | . 2 . Traps | -11 -10 -10 ------- Run | Yrd Mat Min Traps Triggered 3 | . 3 . Indirectly . | . . . Trap Hack Attempts . | . . . Triggered . | . . . Disarmed . | . . . Reprogrammed . | . . . Reused . | . . . Traps Extracted . | . . . Installed . | . . . Triggered . | . . . Machines | -11 -10 -10 ---------- Run | Yrd Mat Min Machines Disabled 1 | . 1 . Max in Single Turn 1 | . 1 . Machines Repaired . | . . . Machines Dismantled . | . . . Machines Sabotaged . | . . . Overloaded Fab Kills . | . . . Hacking | -11 -10 -10 --------- Run | Yrd Mat Min Machines Accessed 4 | . 4 . Terminals 3 | . 3 . Fabricators . | . . . Repair Stations 1 | . 1 . Recycling Units . | . . . Scanalyzers . | . . . Garrison Access . | . . . Total Hacks 12 | . 12 . Successful 6 | . 6 . Failed 6 | . 6 . Catastrophic 2 | . 2 . Database Lockouts . | . . . Manual 6 | . 6 . Terminals 8 | . 8 . Fabricators . | . . . Repair Stations 4 | . 4 . Recycling Units . | . . . Scanalyzers . | . . . Garrison Access . | . . . Terminal Hacks 2 | . 2 . Prototype ID Bank 1 | . 1 . Branch Access Points 1 | . 1 . Fabricator Hacks . | . . . Repair Station Hacks 4 | . 4 . Scan Component 2 | . 2 . Repair 2 | . 2 . Recycling Unit Hacks . | . . . Scanalyzer . | . . . Garrison Access Hacks . | . . . Unauthorized Hacks . | . . . Terminals . | . . . Fabricators . | . . . Repair Stations . | . . . Recycling Units . | . . . Scanalyzers . | . . . Garrison Access . | . . . Data Cores Recovered 1 | . 1 . Used 1 | . 1 . Hacking Detections 3 | . 3 . Full Trace Events 1 | . 1 . Feedback Events . | . . . Feedback Blocked . | . . . Robot Schematics Acquired . | . . . Robots Built . | . . . Authchips . | . . . Time . | . . . Total Robot Build Rating . | . . . Part Schematics Acquired . | . . . Parts Built . | . . . Authchips . | . . . Time . | . . . Total Part Build Rating . | . . . Parts Repaired 2 | . 2 . Time 52 | . 52 . Parts Recycled . | . . . Recycled Matter . | . . . Retrieved Matter . | . . . Retrieved Components . | . . . Parts Scanalyzed . | . . . Part Schematics Acquired . | . . . Parts Damaged . | . . . Bothacking | -11 -10 -10 ------------ Run | Yrd Mat Min Used RIF Installer . | . . . Robots Hacked . | . . . Non-combat . | . . . Combat . | . . . Robot Hacks Applied . | . . . Relay Couplers Released . | . . . Fabnet Peak Effective % . | . . . Robots Rewired . | . . . Allies Hacked . | . . . Hacks Repelled . | . . . Allies | -11 -10 -10 -------- Run | Yrd Mat Min Total Allies 2 | . . 2 Largest Group 2 | . . 2 Highest-Rated Group 40 | . . 40 Highest-Rated Ally 31 | . . 31 Total Orders . | . . . Ally Attacks 13 | . . 13 Total Damage 206 | . . 206 Kills 3 | . . 3 Allies Corrupted . | . . . Allies Melted . | . . . Intel | -11 -10 -10 ------- Run | Yrd Mat Min Active Infowar (turns) . | . . . Robot Analysis Total . | . . . Derelict Logs Recovered 2 | . . 2 Drone Launches . | . . . Drone Recoveries . | . . . Exploration | -11 -10 -10 ------------- Run | Yrd Mat Min Turns Passed 1285 | 85 934 266 Spaces Moved 606 | 49 435 122 Core 5 | 5 . . Treads 601 | 44 435 122 Legs . | . . . Wheels . | . . . Hover . | . . . Flight . | . . . Fastest Speed 50 | 50 160 160 Average Speed 159 | 148 160 160 Slowest Speed 160 | 160 160 160 Overloaded Moves . | . . . Propulsion Burnouts . | . . . Robots Hopped . | . . . Potential Cave-ins . | . . . Cave-ins Triggered . | . . . Exploration Rate (%) 29 | 4 51 34 Regions Visited 2 Branch Regions 1 Pre-discovered Areas 1 | . . 1 Known Exits Taken 1 | . 1 . Unknown Exits Taken 1 | 1 . . Scrap Searched 1 | . . 1 Spaces Dug . | . . . Terrain Destroyed . | . . . Melee . | . . . Projectile . | . . . AOE . | . . . Terrain Rammed . | . . . Walls Destroyed . | . . . Machines Disabled . | . . . Actions | -11 -10 -10 --------- Run | Yrd Mat Min Total 816 | 61 592 163 Wait 119 | . 96 23 Move 604 | 48 434 122 Hop . | . . . Pick Up 18 | 7 11 . Fast Attach 5 | 1 3 1 Attach 9 | 5 2 2 Detach . | . . . Swap . | . . . Drop 4 | . 4 . Fire 57 | . 42 15 Melee . | . . . Ram . | . . . Kick . | . . . Crush . | . . . Escape Stasis . | . . . Rewire . | . . . Trap . | . . . Miscellaneous . | . . . Route ------- -11/Scrapyard -10/Materials (discovered 2 exits: [*Mat] / *Min) -10/Mines History --------- Turn | Location | Event 12 | -11/Scrapyard | Discovered new exit (range 15) 86 | -11/Scrapyard | Entered Materials 287 | -10/Materials | Identified exit to Mines 315 | -10/Materials | Build established: Mutant 589 | -10/Materials | Discovered new exit (range 3) 809 | -10/Materials | Repaired Lgt. Treads 837 | -10/Materials | Repaired Lgt. Treads 886 | -10/Materials | Derelicts attacked the area 1020 | -10/Materials | Entered Mines 1067 | -10/Mines | Learned Materials stockpile data 1136 | -10/Mines | Learned location of Recycling (-9) 1153 | -10/Mines | Core integrity fell below 50% 1183 | -10/Mines | Assembled infested the area 1188 | -10/Mines | Assisted by a Guerilla fighting off Assembled 1257 | -10/Mines | Core integrity fell below 20% 1286 | -10/Mines | Destroyed by as-78041 with Assembled Heavy Rifle Last Messages --------------- K-01 Serf collects debris. A pair of derelicts emerge from the shadows: "We're, um, lost. You wouldn't happen to know the way out of here, would you?" K-01 Serf collects debris. The unstable cave ceiling collapses. D-53 Grenadier destroyed. Lgt. Treads destroyed. K-01 Serf collects debris. D-53 Grenadier destroyed. The unstable cave ceiling collapses. K-01 Serf collects debris. as-76870 sneak attacks. T-07 Excavator system corrupted by crushing effect. K-01 Serf collects debris. as-82694 destroyed. K-01 Serf collects debris. as-54843 destroyed. The unstable cave ceiling collapses. Map ----- +----------------------------------------------------+ | | | | | | | | | | | | | | | | | | | | | | | ?????????????????????????????????????????????? | | ?????????????????????????????????????????????? | | ?????????????????????????????????????????????? | | ?????????????????????????????????????????????? | | ??????????????????????##?????????????????????? | | ????????????????????## ?????????????????????? | | ?????????????????#### ?????????????????????? | | ?????????????????# ?????????????????????? | | ?????????????????? ??????????????????????? | | ??????????????????# ??????????????????????? | | ?????????????????## ????####??????????????? | | ?????????????????# ##### ##?????????????? | | ????????????????## # ## ##????????????? | | ????????????????# # #????????????? | | ???????????????????# @ #????????????? | | ???????????????????# #?????????????? | | ???????????????????# aa# ##?????????????? | | ???????????????????# # #?????????????? | | ???????????? # #?????????????? | | ???????? =% ?? ## # # #?????????????? | | ???????????????### # ## #?????????????? | | ???????????????# # % #?????????????? | | ???????????????# # # #?????????????? | | ???????????????# ##?????????????? | | ???????????????# ##??????????????? | | ???????????????# ##???????????????? | | ???????????????# %##????????????????? | | ???????????????# ######???????????? | | ???????????????##### | % ###?????????? | | ???????????????????## % ##????????? | | ????????????????????# #### ?? | | ????????????????????### #???? | | ?????????????????######% #???? | | ?????????????????# " ### #######???? | | ?????????????????# ##???#?????????? | | ?????????????????# ####### #??????????????? | | ????????????????? #?????### #??????????????? | | ?????????????????# #???????# #??????????????? | | ?????????????????# #???????# ##?????????????? | +----------------------------------------------------+ Best States ------------- Heat Dissipation 25 Energy Generation 10 Energy Capacity 250 Matter Stores 300 Matter Capacity 300 Sight Range 16 Terrain Scan Density 10 Utility Shielding 33 Evasion (%) 40 Recoil Reduction 2 Item Schematics ----------------- None Robot Schematics ------------------ None Fabricated ------------ Nothing Repaired ---------- Lgt. Treads | 14% | -10/Materials Lgt. Treads | 16% | -10/Materials Alien Tech Used ----------------- None Achievements -------------- None Challenges ------------ None Game ------ Seed RegenerativeHugeStripper Manual? 0 Play Time 00:09:46 Cumulative 46.5 hours Start 2025.06.07 @ 19:29:15 End 2025.06.07 @ 19:38:13 Sessions 1 Manual Loads 0 Difficulty Rogue Special Mode None Game No. 46 Rogue 46 Adventurer 0 Explorer 0 Win Type - Total 1 Types 1/0/0/0/0/0/0/0/0/0 Lore% 33 Gallery% 37 Achievement% 41 Wizard Run 0 Options --------- Layout 1 ASCII 0 Keyboard 0 Movement Mouse Keybinds 0 Fullscreen 1 Font 24/Smallcaps Map View 50x35 Zoom Use 0% Tactical HUD 0 Map Filters NONE Filters NONE Steam 1 RUN: 11ed15db-c1a9-4c41-ae7a-f7e68ee538de